fUST/lending_fUST_20240122
["ID","MTS","AMOUNT","RATE_DAILY","PERIOD"]
[312435311,1705872640435,-500.0,0.00027397,2]
[312435312,1705872640444,-500.0,0.00027397,2]
[312435313,1705872640453,-368.94436176,0.00027397,2]
[312435314,1705872640462,-637.95,0.00027397,2]
[312435315,1705872640472,-500.0,0.00027397,2]
[312435316,1705872640481,-500.0,0.00027397,2]
[312435317,1705872640490,-453.82432863,0.00027397,2]
[312435318,1705872640500,-500.0,0.00027397,2]
[312435319,1705872640509,-500.0,0.00027397,2]
[312435320,1705872640519,-500.0,0.00027397,2]
[312435321,1705872640529,-500.0,0.00027397,2]
[312435322,1705872640538,-500.0,0.00027397,2]
[312435323,1705872640547,-798.17,0.00027397,2]
[312435324,1705872640557,-500.0,0.00027397,2]
[312435325,1705872640566,-10108.24,0.00027397,2]
[312435326,1705872640576,-779.12,0.00027397,2]
[312435327,1705872640587,-500.0,0.00027397,2]
[312435328,1705872640596,-500.0,0.00027397,2]
[312435329,1705872640607,-1508.29,0.00027397,2]
[312435330,1705872640616,-558.29816808,0.00027397,2]
[312435331,1705872640625,-1035.93563138,0.00027397,2]
[312435332,1705872640636,-500.0,0.00027397,2]
[312435333,1705872640645,-743.28,0.00027397,2]
[312435334,1705872640655,-500.0,0.00027397,2]
[312435335,1705872640666,-5938.86,0.00027397,2]
[312435336,1705872640676,-849.32,0.00027397,2]
[312435337,1705872640685,-1782.83,0.00027397,2]
[312435338,1705872640694,-500.0,0.00027397,2]
[312435339,1705872640703,-1048.12,0.00027397,2]
[312435340,1705872640712,-500.0,0.00027397,2]
[312435341,1705872640722,-500.0,0.00027397,2]
[312435342,1705872640731,-1318.39,0.00027397,2]
[312435343,1705872640742,-662.39,0.00027397,2]
[312435344,1705872640753,-4075.35,0.00027397,2]
[312435345,1705872640762,-500.0,0.00027397,2]
[312435346,1705872640770,-7029.81,0.00027397,2]
[312435347,1705872640780,-500.0,0.00027397,2]
[312435348,1705872640791,-500.0,0.00027397,2]
[312435349,1705872640801,-500.0,0.00027397,2]
[312435350,1705872640812,-200.0,0.00027397,2]
[312435351,1705872640823,-5423.33,0.00027397,2]
[312435352,1705872640835,-1909.25,0.00027397,2]
[312435353,1705872640844,-500.0,0.00027397,2]
[312435354,1705872640853,-500.0,0.00027397,2]
[312435355,1705872640862,-1012.62,0.00027397,2]
[312435356,1705872640872,-500.0,0.00027397,2]
[312435357,1705872640882,-500.0,0.00027397,2]
[312435358,1705872640891,-500.0,0.00027397,2]
[312435359,1705872640901,-1117.52,0.00027397,2]
[312435360,1705872640911,-500.0,0.00027397,2]
[312435361,1705872640920,-500.0,0.00027397,2]
[312435362,1705872640929,-500.0,0.00027397,2]
[312435363,1705872640938,-500.0,0.00027397,2]
[312435364,1705872640947,-500.0,0.00027397,2]
[312435365,1705872640956,-500.0,0.00027397,2]
[312435366,1705872640965,-500.0,0.00027397,2]
[312435367,1705872640974,-500.0,0.00027397,2]
[312435368,1705872640983,-2281.21,0.00027397,2]
[312435369,1705872640992,-500.0,0.00027397,2]
[312435370,1705872641001,-500.0,0.00027397,2]
[312435371,1705872641010,-500.0,0.00027397,2]
[312435372,1705872641020,-500.0,0.00027397,2]
[312435373,1705872641029,-1045.65136347,0.00027641,2]
[312435374,1705872641038,-496.83097243,0.00027669,2]
[312435375,1705872641047,-154.87609912,0.00027669,2]
[312435376,1705872641056,-154.90705277,0.00027669,2]
[312435377,1705872641065,-294.32751889,0.00027669,2]
[312435378,1705872641074,-2583.15156299,0.00027669,2]
[312435379,1705872641090,-2136.63743435,0.00027669,2]
[312435380,1705872641099,-678.20873721,0.00027669,2]
[312435381,1705872641108,-1577.23828043,0.00027669,2]
[312435382,1705872641117,-2359.84707037,0.0002767,2]
[312435383,1705872641126,-320.40143759,0.00027671,2]
[312435384,1705872641134,-3216.92126529,0.00027671,2]
[312435385,1705872641143,-261.52719804,0.00027671,2]
[312435386,1705872641152,-4040.70896972,0.00027671,2]
[312435387,1705872641161,-503.33303702,0.00027671,2]
[312435388,1705872641170,-500.0,0.00027671,2]
[312435389,1705872641179,-500.0,0.00027671,2]
[312435390,1705872641188,-500.0,0.00027671,2]
[312435391,1705872641197,-500.0,0.00027671,2]
[312435392,1705872641205,-500.0,0.00027671,2]
[312435393,1705872641214,-500.0,0.00027671,2]
[312435394,1705872641223,-500.0,0.00027671,2]
[312435395,1705872641232,-500.0,0.00027671,2]
[312435396,1705872641242,-644.41,0.00027671,2]
[312435397,1705872641252,-500.0,0.00027671,2]
[312435398,1705872641263,-500.0,0.00027671,2]
[312435399,1705872641273,-808.21,0.00027671,2]
[312435400,1705872641282,-500.0,0.00027671,2]
[312435401,1705872641291,-500.0,0.00027671,2]
[312435402,1705872641301,-500.0,0.00027671,2]
[312435403,1705872641310,-500.0,0.00027671,2]
[312435404,1705872641319,-500.0,0.00027671,2]
[312435405,1705872641329,-500.0,0.00027671,2]
[312435406,1705872641338,-500.0,0.00027671,2]
[312435407,1705872641348,-500.0,0.00027671,2]
[312435408,1705872641357,-500.0,0.00027671,2]
[312435409,1705872641366,-500.0,0.00027671,2]
[312435410,1705872641375,-500.0,0.00027671,2]
[312435411,1705872641384,-500.0,0.00027671,2]
[312435412,1705872641393,-500.0,0.00027671,2]
[312435414,1705872641403,-500.0,0.00027671,2]
[312435416,1705872641412,-178.51955219,0.00027671,2]
[312435417,1705872641421,-500.0,0.00027671,2]
[312435418,1705872641430,-500.0,0.00027671,2]
[312435419,1705872641439,-500.0,0.00027671,2]
[312435420,1705872641449,-1000.0,0.00027671,2]
[312435421,1705872641458,-1418.27,0.00027671,2]
[312435422,1705872641467,-500.0,0.00027671,2]
[312435423,1705872641477,-500.0,0.00027671,2]
[312435424,1705872641486,-500.0,0.00027671,2]
[312435425,1705872641496,-500.0,0.00027671,2]
[312435426,1705872641505,-202.49219079,0.00027671,2]
[312435427,1705872641515,-500.0,0.00027671,2]
[312435428,1705872641525,-500.0,0.00027671,2]
[312435429,1705872641534,-586.29188756,0.00027671,2]
[312435430,1705872641543,-500.0,0.00027671,2]
[312435431,1705872641553,-286.77019817,0.00027671,2]
[312435432,1705872641563,-500.0,0.00027671,2]
[312435433,1705872641573,-500.0,0.00027671,2]
[312435434,1705872641582,-500.0,0.00027671,2]
[312435435,1705872641591,-574.04952877,0.00027671,2]
[312435436,1705872641600,-567.63,0.00027671,2]
[312435437,1705872641609,-500.0,0.00027671,2]
[312435438,1705872641618,-500.0,0.00027671,2]
[312435439,1705872641628,-500.0,0.00027671,2]
[312435440,1705872641638,-655.19,0.00027671,2]
[312435441,1705872641648,-500.0,0.00027671,2]
[312435442,1705872641657,-500.0,0.00027671,2]
[312435443,1705872641666,-500.0,0.00027671,2]
[312435444,1705872641677,-500.0,0.00027671,2]
[312435445,1705872641688,-500.0,0.00027671,2]
[312435446,1705872641698,-500.0,0.00027671,2]
[312435447,1705872641707,-500.0,0.00027671,2]
[312435448,1705872641717,-500.0,0.00027671,2]
[312435449,1705872641727,-500.0,0.00027671,2]
[312435450,1705872641739,-500.0,0.00027671,2]
[312435451,1705872641752,-500.0,0.00027671,2]
[312435452,1705872641762,-837.02,0.00027671,2]
[312435453,1705872641772,-500.0,0.00027671,2]
[312435454,1705872641781,-500.0,0.00027671,2]
[312435455,1705872641791,-500.0,0.00027671,2]
[312435456,1705872641801,-573.49,0.00027671,2]
[312435457,1705872641811,-570.55,0.00027671,2]
[312435458,1705872641822,-500.0,0.00027671,2]
[312435459,1705872641832,-500.0,0.00027671,2]
[312435460,1705872641841,-889.76,0.00027671,2]
[312435461,1705872641850,-500.0,0.00027671,2]
[312435462,1705872641859,-500.0,0.00027671,2]
[312435463,1705872641868,-1712.35,0.00027671,2]
[312435464,1705872641877,-1270.57,0.00027671,2]
[312435465,1705872641886,-500.0,0.00027671,2]
[312435466,1705872641895,-500.0,0.00027671,2]
[312435467,1705872641903,-3521.18,0.00027671,2]
[312435468,1705872641912,-1020.81,0.00027671,2]
[312435469,1705872641921,-747.44,0.00027671,2]
[312435470,1705872641930,-697.81,0.00027671,2]
[312435471,1705872641939,-500.0,0.00027671,2]
[312435472,1705872641948,-500.0,0.00027671,2]
[312435473,1705872641957,-500.0,0.00027671,2]
[312435474,1705872641966,-536.19,0.00027671,2]
[312435475,1705872641975,-14948.03,0.00027671,2]
[312435476,1705872641985,-1451.41,0.00027671,2]
[312435477,1705872641994,-500.0,0.00027671,2]
[312435478,1705872642003,-500.0,0.00027671,2]
[312435479,1705872642012,-637.95,0.00027671,2]
[312435480,1705872642022,-500.0,0.00027671,2]
[312435481,1705872642031,-500.0,0.00027671,2]
[312435482,1705872642043,-511.9404377,0.00027671,2]
[312435483,1705872642053,-546.07773803,0.00027671,2]
[312435484,1705872642064,-798.17,0.00027671,2]
[312435485,1705872642073,-237.28341523,0.00027671,2]
[312435486,1705872642083,-10108.24,0.00027671,2]
[312435487,1705872642093,-779.12,0.00027671,2]
[312435488,1705872642102,-500.0,0.00027671,2]
[312435489,1705872642112,-1508.29,0.00027671,2]
[312435490,1705872642122,-743.28,0.00027671,2]
[312435491,1705872642132,-500.0,0.00027671,2]
[312435492,1705872642142,-5938.86,0.00027671,2]
[312435493,1705872642151,-849.32,0.00027671,2]
[312435494,1705872642161,-1782.83,0.00027671,2]
[312435495,1705872642170,-472.31180466,0.00027671,2]
[312435496,1705872642382,-1005.79,0.00027387,3]
[312435497,1705872642392,-500.0,0.00027397,2]
[312435498,1705872642401,-27.68819534,0.00027671,2]
[312435499,1705872642410,-1048.12,0.00027671,2]
[312435500,1705872642419,-500.0,0.00027671,2]
[312435501,1705872642428,-643.80145182,0.00027671,2]
[312435502,1705872642437,-1318.39,0.00027671,2]
[312435503,1705872642447,-662.39,0.00027671,2]
[312435504,1705872642456,-4075.35,0.00027671,2]
[312435505,1705872642466,-500.0,0.00027671,2]
[312435506,1705872642475,-7029.81,0.00027671,2]
[312435507,1705872642483,-500.0,0.00027671,2]
[312435508,1705872642493,-3972.60707532,0.00027671,2]
[312435560,1705873607091,-313.415658,0.00025103,2]
[312435693,1705873837902,-1114.30379801,0.00025095,2]
[312435694,1705873837914,-154.75239617,0.00025096,4]
[312435695,1705873837923,-20870.64149972,0.00025096,2]
[312435696,1705873837933,-9081.91813124,0.00025096,2]
[312435697,1705873837943,-7379.86363499,0.000251,2]
[312435698,1705873837954,-2532.86876813,0.00025101,2]
[312435699,1705873837963,-763.82268996,0.00025103,2]
[312435700,1705873837973,-4040.70896972,0.00025103,2]
[312435701,1705873837983,-7848.16747172,0.00025103,2]
[312435702,1705873837993,-379.609153,0.00025301,2]
[312435703,1705873838003,-589.1186071,0.00025309,2]
[312435704,1705873838012,-321.74834441,0.00025571,2]
[312435705,1705873838023,-566.0367723,0.00027339,2]
[312435706,1705873838034,-3938.16,0.00027383,3]
[312435707,1705873838045,-3215.93,0.00027385,3]
[312435708,1705873838055,-3061.02,0.00027385,3]
[312435709,1705873838064,-246.07285378,0.00027393,2]
[312435710,1705873838074,-2035.03200155,0.00027393,2]
[312435711,1705873838084,-170.79924496,0.00027393,2]
[312435712,1705873838094,-2102.56602861,0.00027393,2]
[312435713,1705873838103,-3093.5839729,0.00027393,2]
[312435714,1705873838112,-262.14973458,0.00027393,2]
[312435715,1705873838121,-154.95340266,0.00027393,2]
[312435716,1705873838131,-3958.60103048,0.00027393,2]
[312435717,1705873838139,-154.93802479,0.00027394,2]
[312435718,1705873838149,-724.34065692,0.00027394,2]
[312435719,1705873838160,-327.4401691,0.00027395,2]
[312435720,1705873838169,-644.05484588,0.00027395,2]
[312435721,1705873838178,-154.86062544,0.00027395,2]
[312435722,1705873838188,-875.93915164,0.00027395,2]
[312435723,1705873838198,-2898.81970421,0.00027395,2]
[312435724,1705873838207,-36953.29134027,0.00027395,2]
[312435725,1705873838217,-154.75239617,0.00027396,2]
[312435726,1705873838226,-6813.84544549,0.00027396,2]
[312435727,1705873838237,-500.0,0.00027397,2]
[312435728,1705873838247,-500.0,0.00027397,2]
[312435729,1705873838257,-151.53580206,0.00027397,2]
[312435730,1705873838269,-500.0,0.00027397,2]
[312435731,1705873838279,-500.0,0.00027397,2]
[312435732,1705873838289,-500.0,0.00027397,2]
[312435733,1705873838299,-500.0,0.00027397,2]
[312435734,1705873838308,-500.0,0.00027397,2]
[312435735,1705873838318,-500.0,0.00027397,2]
[312435736,1705873838327,-500.0,0.00027397,2]
[312435737,1705873838336,-500.0,0.00027397,2]
[312435738,1705873838345,-430.98156131,0.00027397,2]
[312435739,1705873838354,-500.0,0.00027397,2]
[312435740,1705873838363,-500.0,0.00027397,2]
[312435741,1705873838371,-500.0,0.00027397,2]
[312435742,1705873838380,-570.27,0.00027397,2]
[312435743,1705873838389,-500.0,0.00027397,2]
[312435744,1705873838398,-500.0,0.00027397,2]
[312435745,1705873838407,-500.0,0.00027397,2]
[312435746,1705873838416,-586.54466235,0.00027397,2]
[312435747,1705873838425,-500.0,0.00027397,2]
[312435748,1705873838434,-500.0,0.00027397,2]
[312435749,1705873838444,-634.79,0.00027397,2]
[312435750,1705873838453,-500.0,0.00027397,2]
[312435751,1705873838463,-500.0,0.00027397,2]
[312435752,1705873838472,-500.0,0.00027397,2]
[312435753,1705873838482,-500.0,0.00027397,2]
[312435754,1705873838492,-691.68,0.00027397,2]
[312435755,1705873838503,-500.0,0.00027397,2]
[312435756,1705873838512,-500.0,0.00027397,2]
[312435757,1705873838523,-472.61612095,0.00027397,2]
[312435758,1705873838532,-500.0,0.00027397,2]
[312435759,1705873838541,-500.0,0.00027397,2]
[312435760,1705873838550,-502.39253429,0.00027397,2]
[312435761,1705873838560,-500.0,0.00027397,2]
[312435762,1705873838569,-635.96694651,0.00027397,2]
[312435763,1705873838579,-500.0,0.00027397,2]
[312435764,1705873838588,-500.0,0.00027397,2]
[312435765,1705873838597,-500.0,0.00027397,2]
[312435766,1705873838606,-500.0,0.00027397,2]
[312435767,1705873838616,-500.0,0.00027397,2]
[312435768,1705873838626,-156.32295758,0.00027397,2]
[312435769,1705873838635,-503.89430269,0.00027397,2]
[312435770,1705873838644,-500.0,0.00027397,2]
[312435771,1705873838654,-631.88,0.00027397,2]
[312435772,1705873838663,-500.0,0.00027397,2]
[312435773,1705873838672,-500.0,0.00027397,2]
[312435774,1705873838681,-1000.0,0.00027397,2]
[312435775,1705873838691,-150.10003198,0.00027397,2]
[312435776,1705873838700,-425.81095081,0.00027397,2]
[312435777,1705873838710,-500.0,0.00027397,2]
[312435778,1705873838719,-500.0,0.00027397,2]
[312435779,1705873838729,-500.90581918,0.00027397,2]
[312435780,1705873838739,-500.0,0.00027397,2]
[312435781,1705873838748,-459.32992208,0.00027397,2]
[312435782,1705873838758,-1001.18344881,0.00027397,5]
[312435783,1705873838768,-437.94230908,0.00027397,2]
[312435784,1705873838776,-500.0,0.00027397,2]
[312435785,1705873838786,-500.0,0.00027397,2]
[312435786,1705873838796,-716.3,0.00027397,2]
[312435787,1705873838806,-500.0,0.00027397,2]
[312435788,1705873838815,-500.0,0.00027397,2]
[312435789,1705873838825,-500.0,0.00027397,2]
[312435790,1705873838834,-491.6713337,0.00027397,2]
[312435791,1705873838844,-502.39572461,0.00027397,2]
[312435792,1705873838853,-500.0,0.00027397,2]
[312435793,1705873838862,-368.94436176,0.00027397,2]
[312435794,1705873838872,-500.0,0.00027397,2]
[312435795,1705873838881,-500.0,0.00027397,2]
[312435796,1705873838892,-500.0,0.00027397,2]
[312435797,1705873838901,-1418.15,0.00027397,2]
[312435798,1705873838912,-561.16798404,0.00027397,2]
[312435799,1705873838921,-500.0,0.00027397,2]
[312435800,1705873838931,-500.0,0.00027397,2]
[312435801,1705873838940,-500.0,0.00027397,2]
[312435802,1705873838949,-500.0,0.00027397,2]
[312435803,1705873838958,-500.0,0.00027397,2]
[312435804,1705873838968,-500.0,0.00027397,2]
[312435805,1705873838977,-500.0,0.00027397,2]
[312435806,1705873838988,-500.0,0.00027397,2]
[312435807,1705873838998,-500.0,0.00027397,2]
[312435808,1705873839007,-470.11053392,0.00027397,2]
[312435809,1705873839016,-1035.93563138,0.00027397,2]
[312435810,1705873839027,-500.0,0.00027397,2]
[312435811,1705873839037,-500.0,0.00027397,2]
[312435812,1705873839046,-500.0,0.00027397,2]
[312435813,1705873839058,-500.0,0.00027397,2]
[312435814,1705873839068,-500.0,0.00027397,2]
[312435815,1705873839078,-500.0,0.00027397,2]
[312435816,1705873839087,-500.0,0.00027397,2]
[312435817,1705873839096,-500.0,0.00027397,2]
[312435818,1705873839106,-151.44619477,0.00027397,2]
[312435819,1705873839116,-200.0,0.00027397,2]
[312435820,1705873839125,-500.0,0.00027397,2]
[312435821,1705873839134,-500.0,0.00027397,2]
[312435822,1705873839145,-500.0,0.00027397,2]
[312435823,1705873839159,-1000.0,0.00027397,2]
[312435824,1705873839168,-500.0,0.00027397,2]
[312435825,1705873839177,-500.0,0.00027397,2]
[312435826,1705873839187,-500.0,0.00027397,2]
[312435827,1705873839196,-500.0,0.00027397,2]
[312435828,1705873839206,-500.0,0.00027397,2]
[312435829,1705873839215,-500.0,0.00027397,2]
[312435830,1705873839225,-500.0,0.00027397,2]
[312435831,1705873839235,-500.0,0.00027397,2]
[312435832,1705873839245,-500.0,0.00027397,2]
[312435833,1705873839254,-500.0,0.00027397,2]
[312435834,1705873839264,-500.0,0.00027397,2]
[312435835,1705873839273,-500.0,0.00027397,2]
[312435836,1705873839282,-500.0,0.00027397,2]
[312435837,1705873839292,-500.0,0.00027397,2]
[312435838,1705873839301,-500.0,0.00027397,2]
[312435839,1705873839311,-500.0,0.00027397,2]
[312435840,1705873839320,-1119.28,0.00027397,2]
[312435841,1705873839329,-503.3727828,0.00027397,2]
[312435842,1705873839339,-500.0,0.00027397,2]
[312435843,1705873839348,-500.0,0.00027397,2]
[312435844,1705873839357,-500.0,0.00027397,2]
[312435845,1705873839367,-533.83,0.00027397,2]
[312435846,1705873839376,-500.0,0.00027397,2]
[312435847,1705873839385,-500.0,0.00027397,2]
[312435848,1705873839394,-500.0,0.00027397,2]
[312435849,1705873839403,-500.0,0.00027397,2]
[312435850,1705873839413,-644.27,0.00027397,2]
[312435851,1705873839422,-500.0,0.00027397,2]
[312435852,1705873839431,-500.0,0.00027397,2]
[312435853,1705873839440,-500.0,0.00027397,2]
[312435854,1705873839449,-500.0,0.00027397,2]
[312435855,1705873839458,-896.24,0.00027397,2]
[312435856,1705873839468,-500.0,0.00027397,2]
[312435857,1705873839477,-464.02860065,0.00027397,2]
[312435858,1705873839486,-500.0,0.00027397,2]
[312435859,1705873839495,-500.0,0.00027397,2]
[312435860,1705873839504,-500.0,0.00027397,2]
[312435861,1705873839513,-1641.0,0.00027397,2]
[312435862,1705873839523,-500.0,0.00027397,2]
[312435863,1705873839532,-10000.0,0.00027397,10]
[312435864,1705873839541,-500.0,0.00027397,2]
[312435865,1705873839551,-500.0,0.00027397,2]
[312435866,1705873839560,-500.0,0.00027397,2]
[312435867,1705873839570,-500.0,0.00027397,2]
[312435868,1705873839579,-571.22,0.00027397,2]
[312435869,1705873839589,-500.0,0.00027397,2]
[312435870,1705873839598,-500.0,0.00027397,2]
[312435871,1705873839607,-500.0,0.00027397,2]
[312435872,1705873839616,-500.0,0.00027397,2]
[312435873,1705873839626,-500.0,0.00027397,2]
[312435874,1705873839635,-500.0,0.00027397,2]
[312435875,1705873839644,-545.57,0.00027397,2]
[312435876,1705873839653,-500.0,0.00027397,2]
[312435877,1705873839662,-500.0,0.00027397,2]
[312435878,1705873839671,-500.0,0.00027397,2]
[312435879,1705873839680,-500.0,0.00027397,2]
[312435880,1705873839689,-807.75,0.00027397,2]
[312435881,1705873839698,-3722.03,0.00027397,2]
[312435882,1705873839708,-500.0,0.00027397,2]
[312435883,1705873839718,-500.0,0.00027397,2]
[312435884,1705873839727,-706.76,0.00027397,2]
[312435885,1705873839736,-1339.19,0.00027397,2]
[312435886,1705873839746,-15739.1,0.00027397,2]
[312435887,1705873839756,-500.0,0.00027397,2]
[312435888,1705873839766,-1453.39,0.00027397,2]
[312435889,1705873839775,-500.0,0.00027397,2]
[312435890,1705873839785,-500.0,0.00027397,2]
[312435891,1705873839794,-500.17407216,0.00027397,2]
[312435892,1705873839803,-500.0,0.00027397,2]
[312435893,1705873839812,-500.0,0.00027397,2]
[312435894,1705873839821,-500.0,0.00027397,2]
[312435895,1705873839830,-155.0,0.00027397,2]
[312435896,1705873839839,-500.0,0.00027397,2]
[312435897,1705873839848,-500.0,0.00027397,2]
[312435898,1705873839858,-500.0,0.00027397,2]
[312435899,1705873839867,-581.49926245,0.00027397,2]
[312435900,1705873839877,-500.0,0.00027397,2]
[312435901,1705873839886,-454.30429617,0.00027397,2]
[312435902,1705873839895,-500.0,0.00027397,2]
[312435903,1705873839904,-500.0,0.00027397,2]
[312435904,1705873839913,-502.52181998,0.00027397,2]
[312435905,1705873839923,-500.0,0.00027397,2]
[312435906,1705873839932,-500.0,0.00027397,2]
[312435907,1705873839941,-500.0,0.00027397,2]
[312435908,1705873839950,-700.45,0.00027397,2]
[312435909,1705873839959,-1033.96,0.00027397,2]
[312435910,1705873839968,-500.0,0.00027397,2]
[312435911,1705873839977,-500.0,0.00027397,2]
[312435912,1705873839987,-500.0,0.00027397,2]
[312435913,1705873839996,-10696.13,0.00027397,2]
[312435914,1705873840006,-780.46,0.00027397,2]
[312435915,1705873840015,-503.30082423,0.00027397,2]
[312435916,1705873840024,-824.87,0.00027397,2]
[312435917,1705873840033,-500.0,0.00027397,2]
[312435918,1705873840043,-272.94732908,0.00027397,2]
[312435919,1705873840053,-500.0,0.00027397,2]
[312435920,1705873840062,-500.0,0.00027397,2]
[312435921,1705873840071,-500.0,0.00027397,2]
[312435922,1705873840080,-500.0,0.00027397,2]
[312435923,1705873840089,-500.0,0.00027397,2]
[312435924,1705873840098,-237.04279308,0.00027397,2]
[312435925,1705873840106,-1004.45,0.00027397,2]
[312435926,1705873840115,-500.0,0.00027397,2]
[312435927,1705873840124,-801.19,0.00027397,2]
[312435928,1705873840133,-5940.14,0.00027397,2]
[312435929,1705873840143,-903.08,0.00027397,2]
[312435930,1705873840154,-500.0,0.00027397,2]
[312435931,1705873840165,-7067.33,0.00027397,2]
[312435932,1705873840174,-500.0,0.00027397,2]
[312435933,1705873840183,-558.29816808,0.00027397,2]
[312435934,1705873840194,-500.0,0.00027397,2]
[312435935,1705873840204,-500.0,0.00027397,2]
[312435936,1705873840215,-1381.1,0.00027397,2]
[312435937,1705873840226,-1991.97,0.00027397,2]
[312435938,1705873840236,-4090.78,0.00027397,2]
[312435939,1705873840245,-200.0,0.00027397,2]
[312435940,1705873840255,-1507.42,0.00027397,2]
[312435941,1705873840264,-500.0,0.00027397,2]
[312435942,1705873840274,-500.0,0.00027397,2]
[312435943,1705873840284,-234.44431672,0.00027397,2]
[312435944,1705873840295,-5257.8,0.00027397,2]
[312435945,1705873840305,-500.0,0.00027397,2]
[312435946,1705873840315,-500.0,0.00027397,2]
[312435947,1705873840324,-500.0,0.00027397,2]
[312435948,1705873840333,-500.0,0.00027397,2]
[312435949,1705873840342,-2281.21,0.00027397,2]
[312435950,1705873840352,-500.0,0.00027397,2]
[312435951,1705873840361,-501.64392268,0.00027397,2]
[312435952,1705873840370,-1209.94,0.00027397,2]
[312435953,1705873840379,-500.0,0.00027397,2]
[312435954,1705873840390,-500.0,0.00027397,2]
[312435955,1705873840400,-1861.85,0.00027397,2]
[312435956,1705873840409,-500.0,0.00027397,2]
[312435957,1705873840517,-500.0,0.00027397,2]
[312435958,1705873840527,-500.0,0.00027397,2]
[312435959,1705873840537,-500.0,0.00027397,2]
[312435960,1705873840546,-500.0,0.00027397,2]
[312435961,1705873840556,-500.0,0.00027397,2]
[312435962,1705873840565,-515.04596927,0.00027397,2]
[312435963,1705873840574,-500.0,0.00027397,2]
[312435964,1705873840584,-500.0,0.00027397,2]
[312435965,1705873840593,-500.0,0.00027397,2]
[312435966,1705873840603,-500.0,0.00027397,2]
[312435967,1705873840613,-500.0,0.00027397,2]
[312435968,1705873840622,-500.0,0.00027397,2]
[312435969,1705873840631,-802.14,0.00027397,2]
[312435970,1705873840640,-500.0,0.00027397,2]
[312435971,1705873840650,-500.0,0.00027397,2]
[312435972,1705873840659,-500.0,0.00027397,2]
[312435973,1705873840668,-500.0,0.00027397,2]
[312435975,1705873840678,-417.7674032,0.000274,2]
[312435976,1705873840687,-327.9954237,0.000274,2]
[312435977,1705873840696,-153.0,0.000274,2]
[312435978,1705873840705,-401.5792863,0.000274,2]
[312435979,1705873840714,-153.0,0.000274,2]
[312435980,1705873840723,-153.0,0.000274,2]
[312435981,1705873840732,-153.0,0.000274,2]
[312435982,1705873840741,-153.0,0.000274,2]
[312435983,1705873840751,-387.045877,0.00027671,2]
[312435984,1705873840760,-387.045877,0.00027671,2]
[312435985,1705873840769,-151.0,0.00027671,2]
[312435986,1705873840778,-1607.4130733,0.00027671,2]
[312435988,1705873840788,-261.52719804,0.00027671,2]
[312435989,1705873840797,-187.29041613,0.00027671,2]
[312435990,1705873840806,-500.0,0.00027671,2]
[312435991,1705873840816,-500.0,0.00027671,2]
[312435992,1705873840825,-500.0,0.00027671,2]
[312435993,1705873840833,-500.0,0.00027671,2]
[312435994,1705873840843,-500.0,0.00027671,2]
[312435995,1705873840852,-500.0,0.00027671,2]
[312435996,1705873840861,-500.0,0.00027671,2]
[312435997,1705873840870,-570.27,0.00027671,2]